[Event "January 2 Early 2024"]
[Site "https://www.chess.com"]
[Date "2024.01.02"]
[Round "11"]
[White "Wagner, Dennis"]
[Black "NevorLegov"]
[Result "0-1"]
[Board "26"]
[TimeControl "180+1"]
[WhiteFideId "24650684"]
[WhiteElo "2750"]
[BlackElo "2921"]
[WhiteTeam "GER"]
[WhiteClock "0:00:13"]
[BlackClock "0:00:06"]

1. Nf3 {[%clk 0:03:00]}  d5 {[%clk 0:02:59]} 2. e3 {[%clk 0:03:00]}  c5 {[%clk 0:02:58]} 3. b3 {[%clk 0:02:59]}  a6 {[%clk 0:02:54]} 4. Bb2 {[%clk 0:02:59]}  Nc6 {[%clk 0:02:55]} 5. d4 {[%clk 0:02:57]}  Nf6 {[%clk 0:02:55]} 6. Bd3 {[%clk 0:02:52]}  Bg4 {[%clk 0:02:54]} 7. Nbd2 {[%clk 0:02:48]}  e6 {[%clk 0:02:54]} 8. h3 {[%clk 0:02:48]}  Bh5 {[%clk 0:02:53]} 9. O-O {[%clk 0:02:44]}  Bd6 {[%clk 0:02:52]} 10. dxc5 {[%clk 0:02:39]}  Bxc5 {[%clk 0:02:53]} 11. c4 {[%clk 0:02:39]}  d4 {[%clk 0:02:49]} 12. e4 {[%clk 0:02:16]}  Nd7 {[%clk 0:02:34]} 13. a3 {[%clk 0:02:11]}  Nde5 {[%clk 0:02:29]} 14. Qe2 {[%clk 0:02:06]}  Qf6 {[%clk 0:02:15]} 15. g4 {[%clk 0:02:01]}  Nxg4 {[%clk 0:01:58]} 16. hxg4 {[%clk 0:01:59]}  Bxg4 {[%clk 0:01:59]} 17. e5 {[%clk 0:01:58]}  Qh6 {[%clk 0:01:49]} 18. Qe4 {[%clk 0:01:54]}  Bf5 {[%clk 0:01:47]} 19. Qe2 {[%clk 0:01:52]}  Qg6+ {[%clk 0:01:47]} 20. Kh2 {[%clk 0:01:46]}  Bxd3 {[%clk 0:01:47]} 21. Qd1 {[%clk 0:01:42]}  Qh5+ {[%clk 0:01:45]} 22. Kg3 {[%clk 0:01:41]}  Nxe5 {[%clk 0:01:42]} 23. Nxe5 {[%clk 0:01:30]}  Qxe5+ {[%clk 0:01:42]} 24. f4 {[%clk 0:01:30]}  Qf5 {[%clk 0:01:40]} 25. Re1 {[%clk 0:01:23]}  g5 {[%clk 0:01:33]} 26. Qg4 {[%clk 0:01:16]}  gxf4+ {[%clk 0:01:22]} 27. Kf3 {[%clk 0:01:17]}  Qxg4+ {[%clk 0:01:13]} 28. Kxg4 {[%clk 0:01:17]}  Rg8+ {[%clk 0:01:11]} 29. Kxf4 {[%clk 0:01:18]}  Bd6+ {[%clk 0:01:07]} 30. Kf3 {[%clk 0:01:18]}  Rg3+ {[%clk 0:00:48]} 31. Kf2 {[%clk 0:01:18]}  Rg4 {[%clk 0:00:49]} 32. Rg1 {[%clk 0:01:16]}  Rf4+ {[%clk 0:00:49]} 33. Ke1 {[%clk 0:01:11]}  O-O-O {[%clk 0:00:49]} 34. c5 {[%clk 0:01:11]}  Be7 {[%clk 0:00:47]} 35. Rc1 {[%clk 0:01:10]}  Bh4+ {[%clk 0:00:42]} 36. Kd1 {[%clk 0:01:09]}  e5 {[%clk 0:00:41]} 37. Nc4 {[%clk 0:01:06]}  Bxc4 {[%clk 0:00:35]} 38. Rxc4 {[%clk 0:01:07]}  Rf2 {[%clk 0:00:35]} 39. Bc1 {[%clk 0:01:05]}  f5 {[%clk 0:00:27]} 40. c6 {[%clk 0:01:02]}  Bf6 {[%clk 0:00:23]} 41. Rh1 {[%clk 0:00:57]}  Rg8 {[%clk 0:00:20]} 42. cxb7+ {[%clk 0:00:50]}  Kb8 {[%clk 0:00:20]} 43. Bd2 {[%clk 0:00:45]}  e4 {[%clk 0:00:19]} 44. Rxh7 {[%clk 0:00:38]}  Rg7 {[%clk 0:00:11]} 45. Rxg7 {[%clk 0:00:13]}  Bxg7 {[%clk 0:00:11]} 46. Rb4 {[%clk 0:00:14]}  e3 {[%clk 0:00:08]} 47. Be1 {[%clk 0:00:14]}  Rg2 {[%clk 0:00:08]} 48. Bh4 {[%clk 0:00:13]}  Be5 {[%clk 0:00:07]} 49. Be7 {[%clk 0:00:12]}  f4 {[%clk 0:00:05]} 50. Bc5 {[%clk 0:00:10]}  f3 {[%clk 0:00:06]} 51. Ba7+ {[%clk 0:00:10]}  Kxa7 {[%clk 0:00:05]} 52. b8=Q+ {[%clk 0:00:10]}  Bxb8 {[%clk 0:00:06]} 53. Rxd4 {[%clk 0:00:10]}  e2+ {[%clk 0:00:06]} 54. Ke1 {[%clk 0:00:10]}  Bg3+ {[%clk 0:00:06]} 55. Kd2 {[%clk 0:00:11]}  e1=Q+ {[%clk 0:00:06]} 56. Kd3 {[%clk 0:00:12]}  Qe2+ {[%clk 0:00:06]} 57. Kc3 {[%clk 0:00:12]}  Qc2+ {[%clk 0:00:07]} 58. Kb4 {[%clk 0:00:12]}  Be1+ {[%clk 0:00:07]} 59. Ka4 {[%clk 0:00:13]}  Qc6# {[%clk 0:00:06]} 0-1

[Event "January 2 Early 2024"]
[Site "https://www.chess.com"]
[Date "2024.01.02"]
[Round "11"]
[White "Dyachuk, Artem"]
[Black "Makhnev, Denis"]
[Result "0-1"]
[Board "27"]
[TimeControl "180+1"]
[WhiteFideId "34107924"]
[BlackFideId "13707647"]
[WhiteElo "2720"]
[BlackElo "2918"]
[WhiteTeam "UKR"]
[BlackTeam "KAZ"]
[WhiteClock "0:00:33"]
[BlackClock "0:02:13"]

1. e4 {[%clk 0:02:52]}  e5 {[%clk 0:03:00]} 2. f4 {[%clk 0:02:50]}  exf4 {[%clk 0:02:59]} 3. Nf3 {[%clk 0:02:50]}  d6 {[%clk 0:02:58]} 4. Bc4 {[%clk 0:02:47]}  g5 {[%clk 0:02:57]} 5. d4 {[%clk 0:02:46]}  h6 {[%clk 0:02:55]} 6. O-O {[%clk 0:02:44]}  Bg7 {[%clk 0:02:55]} 7. Nc3 {[%clk 0:02:40]}  Nc6 {[%clk 0:02:54]} 8. Ne2 {[%clk 0:02:32]}  Bg4 {[%clk 0:02:53]} 9. c3 {[%clk 0:02:27]}  Nf6 {[%clk 0:02:52]} 10. Kh1 {[%clk 0:02:23]}  O-O {[%clk 0:02:48]} 11. Bd3 {[%clk 0:02:15]}  Qe7 {[%clk 0:02:48]} 12. Qc2 {[%clk 0:02:09]}  Rae8 {[%clk 0:02:47]} 13. Re1 {[%clk 0:02:07]}  Bh5 {[%clk 0:02:40]} 14. Neg1 {[%clk 0:02:02]}  Bg6 {[%clk 0:02:35]} 15. e5 {[%clk 0:01:55]}  Bxd3 {[%clk 0:02:35]} 16. Qxd3 {[%clk 0:01:48]}  dxe5 {[%clk 0:02:35]} 17. dxe5 {[%clk 0:01:46]}  Ng4 {[%clk 0:02:35]} 18. Qf1 {[%clk 0:01:20]}  Qc5 {[%clk 0:02:35]} 19. Nd4 {[%clk 0:01:05]}  Nxd4 {[%clk 0:02:28]} 20. cxd4 {[%clk 0:01:06]}  Qxd4 {[%clk 0:02:29]} 21. Nf3 {[%clk 0:01:06]}  Qb6 {[%clk 0:02:22]} 22. h4 {[%clk 0:00:56]}  Nf2+ {[%clk 0:02:20]} 23. Kh2 {[%clk 0:00:51]}  g4 {[%clk 0:02:20]} 24. Bxf4 {[%clk 0:00:41]}  gxf3 {[%clk 0:02:21]} 25. gxf3 {[%clk 0:00:42]}  Qxb2 {[%clk 0:02:21]} 26. Re2 {[%clk 0:00:42]}  Qd4 {[%clk 0:02:20]} 27. Bg3 {[%clk 0:00:39]}  Nd3 {[%clk 0:02:20]} 28. Rd1 {[%clk 0:00:37]}  Bxe5 {[%clk 0:02:18]} 29. Rg2 {[%clk 0:00:37]}  Qxh4+ {[%clk 0:02:16]} 30. Kg1 {[%clk 0:00:37]}  Bxg3 {[%clk 0:02:15]} 31. Rxd3 {[%clk 0:00:38]}  Kh8 {[%clk 0:02:14]} 32. Qa1+ {[%clk 0:00:36]}  f6 {[%clk 0:02:14]} 33. Rd7 {[%clk 0:00:33]}  Re1+ {[%clk 0:02:14]} 34. Qxe1 {[%clk 0:00:33]}  Bxe1 {[%clk 0:02:13]} 35. Rgg7 {[%clk 0:00:33]} 0-1

[Event "January 2 Early 2024"]
[Site "https://www.chess.com"]
[Date "2024.01.02"]
[Round "11"]
[White "Injac, Teodora"]
[Black "Mekhitarian, Krikor Sevag"]
[Result "0-1"]
[Board "28"]
[TimeControl "180+1"]
[WhiteFideId "932400"]
[BlackFideId "2107660"]
[WhiteElo "2665"]
[BlackElo "2836"]
[WhiteTeam "SRB"]
[BlackTeam "BRA"]
[WhiteClock "0:00:07"]
[BlackClock "0:00:10"]

1. d4 {[%clk 0:03:00]}  Nf6 {[%clk 0:02:59]} 2. Nf3 {[%clk 0:03:01]}  g6 {[%clk 0:02:58]} 3. c4 {[%clk 0:02:59]}  Bg7 {[%clk 0:02:55]} 4. g3 {[%clk 0:03:00]}  d5 {[%clk 0:02:55]} 5. cxd5 {[%clk 0:02:58]}  Nxd5 {[%clk 0:02:56]} 6. Bg2 {[%clk 0:02:58]}  Nb6 {[%clk 0:02:56]} 7. O-O {[%clk 0:02:58]}  Nc6 {[%clk 0:02:57]} 8. e3 {[%clk 0:02:58]}  e5 {[%clk 0:02:57]} 9. Nc3 {[%clk 0:02:48]}  exd4 {[%clk 0:02:57]} 10. exd4 {[%clk 0:02:48]}  O-O {[%clk 0:02:57]} 11. Bg5 {[%clk 0:02:44]}  Qd7 {[%clk 0:02:54]} 12. d5 {[%clk 0:02:40]}  Ne7 {[%clk 0:02:47]} 13. Re1 {[%clk 0:02:27]}  f6 {[%clk 0:01:25]} 14. Bd2 {[%clk 0:02:02]}  Nexd5 {[%clk 0:01:19]} 15. Nd4 {[%clk 0:01:56]}  Qf7 {[%clk 0:01:11]} 16. Ndb5 {[%clk 0:01:38]}  c6 {[%clk 0:00:59]} 17. Nd6 {[%clk 0:01:37]}  Qd7 {[%clk 0:00:58]} 18. Nxd5 {[%clk 0:01:08]}  Nxd5 {[%clk 0:00:54]} 19. Bxd5+ {[%clk 0:00:54]}  cxd5 {[%clk 0:00:54]} 20. Bb4 {[%clk 0:00:54]}  h5 {[%clk 0:00:23]} 21. Qxd5+ {[%clk 0:00:53]}  Kh7 {[%clk 0:00:24]} 22. Rad1 {[%clk 0:00:41]}  Qa4 {[%clk 0:00:21]} 23. a3 {[%clk 0:00:17]}  Bg4 {[%clk 0:00:20]} 24. Rd4 {[%clk 0:00:17]}  Qd7 {[%clk 0:00:18]} 25. Qb3 {[%clk 0:00:10]}  Rad8 {[%clk 0:00:14]} 26. Rd2 {[%clk 0:00:09]}  Qc6 {[%clk 0:00:13]} 27. Qe3 {[%clk 0:00:05]}  Rd7 {[%clk 0:00:10]} 28. Ne4 {[%clk 0:00:04]}  Rxd2 {[%clk 0:00:08]} 29. Qxd2 {[%clk 0:00:04]}  Re8 {[%clk 0:00:07]} 30. h3 {[%clk 0:00:03]}  Bxh3 {[%clk 0:00:06]} 31. Kh2 {[%clk 0:00:03]}  Bf5 {[%clk 0:00:06]} 32. f3 {[%clk 0:00:02]}  Bxe4 {[%clk 0:00:07]} 33. fxe4 {[%clk 0:00:02]}  Rxe4 {[%clk 0:00:08]} 34. Rd1 {[%clk 0:00:02]}  Qe6 {[%clk 0:00:07]} 35. Re1 {[%clk 0:00:01]}  Rxe1 {[%clk 0:00:07]} 36. Qxe1 {[%clk 0:00:02]}  Qxe1 {[%clk 0:00:07]} 37. Bxe1 {[%clk 0:00:03]}  f5 {[%clk 0:00:08]} 38. b3 {[%clk 0:00:04]}  b5 {[%clk 0:00:08]} 39. a4 {[%clk 0:00:04]}  bxa4 {[%clk 0:00:08]} 40. bxa4 {[%clk 0:00:05]}  Be5 {[%clk 0:00:08]} 41. Kg2 {[%clk 0:00:06]}  Kg7 {[%clk 0:00:08]} 42. Kf3 {[%clk 0:00:07]}  Kf7 {[%clk 0:00:09]} 43. Bb4 {[%clk 0:00:07]}  g5 {[%clk 0:00:08]} 44. a5 {[%clk 0:00:07]}  g4+ {[%clk 0:00:08]} 45. Kg2 {[%clk 0:00:07]}  a6 {[%clk 0:00:09]} 46. Bc5 {[%clk 0:00:07]}  Ke6 {[%clk 0:00:09]} 47. Bb6 {[%clk 0:00:07]}  Kd5 {[%clk 0:00:10]} 48. Kf2 {[%clk 0:00:07]}  Kc4 {[%clk 0:00:10]} 0-1

[Event "January 2 Early 2024"]
[Site "https://www.chess.com"]
[Date "2024.01.02"]
[Round "11"]
[White "Mirzoev, Azer"]
[Black "Molina, Roberto Junio Brito"]
[Result "1-0"]
[Board "30"]
[TimeControl "180+1"]
[WhiteFideId "13400304"]
[BlackFideId "2109450"]
[WhiteElo "2634"]
[BlackElo "2802"]
[WhiteTeam "AZE"]
[BlackTeam "BRA"]
[WhiteClock "0:01:54"]
[BlackClock "0:01:03"]

1. d4 {[%clk 0:02:59]}  d5 {[%clk 0:02:59]} 2. Nf3 {[%clk 0:02:58]}  Nf6 {[%clk 0:02:59]} 3. Bf4 {[%clk 0:02:58]}  e6 {[%clk 0:02:57]} 4. e3 {[%clk 0:02:57]}  Bd6 {[%clk 0:02:58]} 5. Nbd2 {[%clk 0:02:57]}  Bxf4 {[%clk 0:02:57]} 6. exf4 {[%clk 0:02:58]}  Qd6 {[%clk 0:02:58]} 7. g3 {[%clk 0:02:58]}  c5 {[%clk 0:02:58]} 8. c3 {[%clk 0:02:58]}  O-O {[%clk 0:02:58]} 9. dxc5 {[%clk 0:02:57]}  Qxc5 {[%clk 0:02:58]} 10. Bd3 {[%clk 0:02:57]}  b6 {[%clk 0:02:58]} 11. O-O {[%clk 0:02:57]}  Ba6 {[%clk 0:02:58]} 12. Bxa6 {[%clk 0:02:56]}  Nxa6 {[%clk 0:02:59]} 13. Ne5 {[%clk 0:02:55]}  Qc7 {[%clk 0:02:57]} 14. Re1 {[%clk 0:02:53]}  g6 {[%clk 0:02:56]} 15. Ndf3 {[%clk 0:02:53]}  Nc5 {[%clk 0:02:55]} 16. h4 {[%clk 0:02:52]}  Nfe4 {[%clk 0:02:51]} 17. Kg2 {[%clk 0:02:49]}  Rfd8 {[%clk 0:02:49]} 18. Qe2 {[%clk 0:02:43]}  Rd6 {[%clk 0:02:45]} 19. h5 {[%clk 0:02:41]}  f6 {[%clk 0:02:43]} 20. Nd3 {[%clk 0:02:38]}  Re8 {[%clk 0:02:32]} 21. Rad1 {[%clk 0:02:35]}  Kg7 {[%clk 0:02:31]} 22. Rh1 {[%clk 0:02:33]}  a6 {[%clk 0:02:30]} 23. hxg6 {[%clk 0:02:20]}  hxg6 {[%clk 0:02:30]} 24. Nh4 {[%clk 0:02:20]}  Nxd3 {[%clk 0:02:16]} 25. Rxd3 {[%clk 0:02:18]}  Nc5 {[%clk 0:01:52]} 26. Rdd1 {[%clk 0:02:09]}  Qf7 {[%clk 0:01:47]} 27. Qg4 {[%clk 0:02:07]}  f5 {[%clk 0:01:25]} 28. Qe2 {[%clk 0:02:04]}  e5 {[%clk 0:01:17]} 29. fxe5 {[%clk 0:02:02]}  f4 {[%clk 0:01:17]} 30. Nf3 {[%clk 0:01:55]}  fxg3 {[%clk 0:01:16]} 31. Rh7+ {[%clk 0:01:54]}  Kxh7 {[%clk 0:01:12]} 32. Ng5+ {[%clk 0:01:53]}  Kg7 {[%clk 0:01:03]} 33. Nxf7 {[%clk 0:01:54]} 1-0

[Event "January 2 Early 2024"]
[Site "https://www.chess.com"]
[Date "2024.01.02"]
[Round "11"]
[White "Teterev, Vitaly"]
[Black "Holt, Conrad"]
[Result "1-0"]
[Board "31"]
[TimeControl "180+1"]
[WhiteFideId "13501429"]
[BlackFideId "2034387"]
[WhiteElo "2631"]
[BlackElo "2800"]
[WhiteTeam "BLR"]
[BlackTeam "USA"]
[WhiteClock "0:00:18"]
[BlackClock "0:00:00"]

1. Nf3 {[%clk 0:02:58]}  d5 {[%clk 0:02:56]} 2. g3 {[%clk 0:02:59]}  Bf5 {[%clk 0:02:56]} 3. Bg2 {[%clk 0:02:58]}  e6 {[%clk 0:02:56]} 4. c4 {[%clk 0:02:58]}  c6 {[%clk 0:02:55]} 5. cxd5 {[%clk 0:02:56]}  exd5 {[%clk 0:02:55]} 6. O-O {[%clk 0:02:56]}  Nf6 {[%clk 0:02:55]} 7. d3 {[%clk 0:02:56]}  Be7 {[%clk 0:02:55]} 8. Nc3 {[%clk 0:02:55]}  O-O {[%clk 0:02:54]} 9. Qb3 {[%clk 0:02:55]}  Qb6 {[%clk 0:02:53]} 10. Qc2 {[%clk 0:02:55]}  Na6 {[%clk 0:02:43]} 11. a3 {[%clk 0:02:54]}  Rfe8 {[%clk 0:02:16]} 12. e4 {[%clk 0:02:52]}  dxe4 {[%clk 0:02:12]} 13. dxe4 {[%clk 0:02:53]}  Be6 {[%clk 0:02:12]} 14. Be3 {[%clk 0:02:52]}  Qa5 {[%clk 0:01:44]} 15. h3 {[%clk 0:02:50]}  h6 {[%clk 0:01:30]} 16. b4 {[%clk 0:02:43]}  Qc7 {[%clk 0:01:29]} 17. Bf4 {[%clk 0:02:36]}  Qc8 {[%clk 0:01:28]} 18. Kh2 {[%clk 0:02:36]}  Nc7 {[%clk 0:01:12]} 19. Nd4 {[%clk 0:02:27]}  Bc4 {[%clk 0:01:10]} 20. Rfe1 {[%clk 0:02:27]}  Ne6 {[%clk 0:01:10]} 21. Be3 {[%clk 0:02:25]}  Nxd4 {[%clk 0:01:07]} 22. Bxd4 {[%clk 0:02:26]}  Rd8 {[%clk 0:01:06]} 23. Rad1 {[%clk 0:02:15]}  Qe6 {[%clk 0:00:55]} 24. Nd5 {[%clk 0:02:00]}  cxd5 {[%clk 0:00:45]} 25. exd5 {[%clk 0:01:59]}  Qc8 {[%clk 0:00:43]} 26. Rxe7 {[%clk 0:01:58]}  Nxd5 {[%clk 0:00:37]} 27. Re4 {[%clk 0:01:37]}  Bb5 {[%clk 0:00:11]} 28. Qb2 {[%clk 0:01:34]}  Nf6 {[%clk 0:00:08]} 29. Rc1 {[%clk 0:01:12]}  Qxc1 {[%clk 0:00:05]} 30. Qxc1 {[%clk 0:01:08]}  Nxe4 {[%clk 0:00:06]} 31. Bxg7 {[%clk 0:00:50]}  Kxg7 {[%clk 0:00:04]} 32. Bxe4 {[%clk 0:00:50]}  Rac8 {[%clk 0:00:04]} 33. Qb2+ {[%clk 0:00:37]}  Kg8 {[%clk 0:00:05]} 34. Bxb7 {[%clk 0:00:37]}  Rc7 {[%clk 0:00:06]} 35. Bf3 {[%clk 0:00:31]}  Rcd7 {[%clk 0:00:05]} 36. Qe5 {[%clk 0:00:26]}  Bd3 {[%clk 0:00:03]} 37. g4 {[%clk 0:00:24]}  Bg6 {[%clk 0:00:03]} 38. h4 {[%clk 0:00:24]}  Rd3 {[%clk 0:00:03]} 39. Kg2 {[%clk 0:00:23]}  Rxa3 {[%clk 0:00:02]} 40. h5 {[%clk 0:00:23]}  Bd3 {[%clk 0:00:01]} 41. g5 {[%clk 0:00:23]}  Bf1+ {[%clk 0:00:01]} 42. Kxf1 {[%clk 0:00:19]}  Rxf3 {[%clk 0:00:01]} 43. gxh6 {[%clk 0:00:19]}  Kf8 {[%clk 0:00:00]} 44. h7 {[%clk 0:00:18]} 1-0

[Event "January 2 Early 2024"]
[Site "https://www.chess.com"]
[Date "2024.01.02"]
[Round "11"]
[White "Ibarra Jerez, Jose Carlos"]
[Black "Volkov, Maksim"]
[Result "1-0"]
[Board "36"]
[TimeControl "180+1"]
[WhiteFideId "2226332"]
[BlackFideId "54123070"]
[WhiteElo "2900"]
[BlackElo "2662"]
[WhiteTeam "ESP"]
[BlackTeam "RUS"]
[WhiteClock "0:00:09"]
[BlackClock "0:00:11"]

1. a3 {[%clk 0:03:00]}  e5 {[%clk 0:02:58]} 2. b4 {[%clk 0:03:01]}  a5 {[%clk 0:02:57]} 3. b5 {[%clk 0:03:01]}  d5 {[%clk 0:02:52]} 4. Bb2 {[%clk 0:03:01]}  Bd6 {[%clk 0:02:49]} 5. e3 {[%clk 0:03:01]}  Ne7 {[%clk 0:02:46]} 6. c4 {[%clk 0:02:57]}  c6 {[%clk 0:02:42]} 7. Nf3 {[%clk 0:02:57]}  Nd7 {[%clk 0:02:41]} 8. Be2 {[%clk 0:02:53]}  O-O {[%clk 0:02:40]} 9. O-O {[%clk 0:02:53]}  e4 {[%clk 0:02:37]} 10. Nd4 {[%clk 0:02:53]}  Ne5 {[%clk 0:02:36]} 11. cxd5 {[%clk 0:02:45]}  cxd5 {[%clk 0:02:36]} 12. Nc3 {[%clk 0:02:39]}  Bd7 {[%clk 0:02:11]} 13. Qb3 {[%clk 0:02:37]}  Rc8 {[%clk 0:01:48]} 14. Nxd5 {[%clk 0:02:28]}  Nxd5 {[%clk 0:01:46]} 15. Qxd5 {[%clk 0:02:28]}  Nf3+ {[%clk 0:00:44]} 16. Nxf3 {[%clk 0:02:17]}  exf3 {[%clk 0:00:41]} 17. Bxf3 {[%clk 0:02:13]}  Be6 {[%clk 0:00:31]} 18. Qd4 {[%clk 0:02:10]}  f6 {[%clk 0:00:27]} 19. Bxb7 {[%clk 0:02:01]}  Rc2 {[%clk 0:00:23]} 20. Bc3 {[%clk 0:02:00]}  Qc7 {[%clk 0:00:21]} 21. Be4 {[%clk 0:01:59]}  Bxh2+ {[%clk 0:00:21]} 22. Kh1 {[%clk 0:01:59]}  Be5 {[%clk 0:00:22]} 23. Qd3 {[%clk 0:01:50]}  Rxc3 {[%clk 0:00:20]} 24. dxc3 {[%clk 0:01:50]}  Rd8 {[%clk 0:00:17]} 25. Qe2 {[%clk 0:01:44]}  Bc4 {[%clk 0:00:16]} 26. Qh5 {[%clk 0:01:30]}  g6 {[%clk 0:00:17]} 27. Qf3 {[%clk 0:01:28]}  Bxf1 {[%clk 0:00:17]} 28. Rxf1 {[%clk 0:01:28]}  Qxc3 {[%clk 0:00:16]} 29. a4 {[%clk 0:01:09]}  Qc4 {[%clk 0:00:16]} 30. Rb1 {[%clk 0:01:07]}  f5 {[%clk 0:00:14]} 31. Bxf5 {[%clk 0:00:53]}  gxf5 {[%clk 0:00:14]} 32. Qxf5 {[%clk 0:00:49]}  Qh4+ {[%clk 0:00:15]} 33. Kg1 {[%clk 0:00:50]}  Qh2+ {[%clk 0:00:08]} 34. Kf1 {[%clk 0:00:50]}  Rd2 {[%clk 0:00:09]} 35. Ke1 {[%clk 0:00:27]}  Ra2 {[%clk 0:00:09]} 36. Qe6+ {[%clk 0:00:27]}  Kg7 {[%clk 0:00:08]} 37. Qxa2 {[%clk 0:00:26]}  Qxg2 {[%clk 0:00:06]} 38. Qc2 {[%clk 0:00:20]}  Qg1+ {[%clk 0:00:04]} 39. Ke2 {[%clk 0:00:20]}  Qg4+ {[%clk 0:00:05]} 40. Kd2 {[%clk 0:00:17]}  Qf3 {[%clk 0:00:04]} 41. Rg1+ {[%clk 0:00:12]}  Kf8 {[%clk 0:00:04]} 42. Qc5+ {[%clk 0:00:06]}  Kf7 {[%clk 0:00:04]} 43. Re1 {[%clk 0:00:03]}  Bf6 {[%clk 0:00:04]} 44. Qc4+ {[%clk 0:00:03]}  Kg7 {[%clk 0:00:03]} 45. Rg1+ {[%clk 0:00:03]}  Kf8 {[%clk 0:00:04]} 46. Rg8+ {[%clk 0:00:02]}  Ke7 {[%clk 0:00:04]} 47. Qc7+ {[%clk 0:00:02]}  Ke6 {[%clk 0:00:04]} 48. Re8+ {[%clk 0:00:03]}  Kf5 {[%clk 0:00:05]} 49. Qf4+ {[%clk 0:00:03]}  Qxf4 {[%clk 0:00:05]} 50. exf4 {[%clk 0:00:04]}  Bd4 {[%clk 0:00:05]} 51. Re7 {[%clk 0:00:03]}  h5 {[%clk 0:00:05]} 52. Rh7 {[%clk 0:00:03]}  Kg4 {[%clk 0:00:04]} 53. Rd7 {[%clk 0:00:03]}  Bxf2 {[%clk 0:00:04]} 54. Ke2 {[%clk 0:00:03]}  Bc5 {[%clk 0:00:04]} 55. Rc7 {[%clk 0:00:03]}  Bd4 {[%clk 0:00:04]} 56. Rc6 {[%clk 0:00:03]}  Kxf4 {[%clk 0:00:03]} 57. b6 {[%clk 0:00:04]}  Be5 {[%clk 0:00:03]} 58. b7 {[%clk 0:00:04]}  h4 {[%clk 0:00:04]} 59. Rc4+ {[%clk 0:00:04]}  Kg5 {[%clk 0:00:04]} 60. Rc5 {[%clk 0:00:04]}  Kf6 {[%clk 0:00:03]} 61. Rxe5 {[%clk 0:00:05]}  Kxe5 {[%clk 0:00:04]} 62. b8=Q+ {[%clk 0:00:06]}  Kd4 {[%clk 0:00:05]} 63. Qf4+ {[%clk 0:00:06]}  Kc3 {[%clk 0:00:06]} 64. Qxh4 {[%clk 0:00:07]}  Kb3 {[%clk 0:00:07]} 65. Qd4 {[%clk 0:00:07]}  Ka3 {[%clk 0:00:08]} 66. Kd2 {[%clk 0:00:07]}  Ka2 {[%clk 0:00:09]} 67. Qc4+ {[%clk 0:00:07]}  Kb1 {[%clk 0:00:10]} 68. Qb5+ {[%clk 0:00:08]}  Ka1 {[%clk 0:00:11]} 69. Kc2 {[%clk 0:00:08]}  Ka2 {[%clk 0:00:11]} 70. Qb2# {[%clk 0:00:09]} 1-0

[Event "January 2 Early 2024"]
[Site "https://www.chess.com"]
[Date "2024.01.02"]
[Round "11"]
[White "Cordoba Roa, Angel Gabriel"]
[Black "Maksimovic, Bojan"]
[Result "0-1"]
[Board "37"]
[TimeControl "180+1"]
[WhiteFideId "3957624"]
[BlackFideId "14408120"]
[WhiteElo "2659"]
[BlackElo "2851"]
[WhiteTeam "COL"]
[BlackTeam "BIH"]
[WhiteClock "0:00:18"]
[BlackClock "0:01:05"]

1. e4 {[%clk 0:03:00]}  c5 {[%clk 0:03:00]} 2. Nf3 {[%clk 0:03:01]}  e6 {[%clk 0:03:01]} 3. d4 {[%clk 0:03:01]}  cxd4 {[%clk 0:03:01]} 4. Nxd4 {[%clk 0:03:02]}  a6 {[%clk 0:03:02]} 5. Nc3 {[%clk 0:03:03]}  b5 {[%clk 0:03:02]} 6. Bd3 {[%clk 0:03:03]}  Bb7 {[%clk 0:03:03]} 7. O-O {[%clk 0:03:04]}  Nc6 {[%clk 0:03:04]} 8. Nxc6 {[%clk 0:03:01]}  Bxc6 {[%clk 0:03:05]} 9. Re1 {[%clk 0:03:02]}  Ne7 {[%clk 0:03:05]} 10. Be3 {[%clk 0:03:01]}  Ng6 {[%clk 0:03:05]} 11. Nd5 {[%clk 0:03:00]}  Bd6 {[%clk 0:02:50]} 12. c4 {[%clk 0:02:51]}  O-O {[%clk 0:02:47]} 13. Nb6 {[%clk 0:02:46]}  Rb8 {[%clk 0:02:42]} 14. c5 {[%clk 0:02:46]}  Bc7 {[%clk 0:02:42]} 15. a4 {[%clk 0:02:47]}  bxa4 {[%clk 0:02:32]} 16. Nxa4 {[%clk 0:02:48]}  Nf4 {[%clk 0:02:21]} 17. Bxa6 {[%clk 0:02:38]}  f5 {[%clk 0:02:20]} 18. Qd2 {[%clk 0:02:21]}  Nxg2 {[%clk 0:02:16]} 19. Kxg2 {[%clk 0:02:17]}  Qh4 {[%clk 0:02:05]} 20. f3 {[%clk 0:01:21]}  fxe4 {[%clk 0:02:05]} 21. f4 {[%clk 0:01:22]}  Rxf4 {[%clk 0:02:06]} 22. Kh1 {[%clk 0:01:03]}  Rbf8 {[%clk 0:01:53]} 23. Re2 {[%clk 0:01:00]}  Rf1+ {[%clk 0:01:37]} 24. Rxf1 {[%clk 0:01:00]}  Rxf1+ {[%clk 0:01:38]} 25. Kg2 {[%clk 0:01:01]}  Rf3 {[%clk 0:01:38]} 26. Kg1 {[%clk 0:00:50]}  Bxa4 {[%clk 0:01:38]} 27. Bc8 {[%clk 0:00:45]}  Qg4+ {[%clk 0:01:29]} 28. Rg2 {[%clk 0:00:37]}  Qf5 {[%clk 0:01:29]} 29. Rf2 {[%clk 0:00:31]}  Qg4+ {[%clk 0:01:04]} 30. Rg2 {[%clk 0:00:31]}  Qh3 {[%clk 0:01:05]} 31. Bb7 {[%clk 0:00:18]}  Bxh2+ {[%clk 0:01:04]} 32. Rxh2 {[%clk 0:00:18]}  Rf1# {[%clk 0:01:05]} 0-1